Cogmind - Beta 13 @@@ ROGUE MODE // 2024.04.10 @ 21:44:19 Player: gabr Result: Destroyed by G-47 Trooper with Particle Gun Performance ------------- Evolutions (2) 1000 Regions Visited (4) 800 Robots Destroyed (43) 215 Value Destroyed (1203) 1203 Prototype IDs (4) 80 Alien Tech Used (0) 0 Bonus (0) 0 TOTAL SCORE: 3298 Bonus ------- None Cogmind --------- Core Integrity 0/550 Matter 169/300 Energy 13/100 System Corruption 0% Temperature Critical (881) Movement Core (50) Location -8/Materials Parts ------- > --- POWER (1) -------- (None) > --- PROPULSION (4) --- (None) > --- UTILITY (3) ------ (None) > --- WEAPON (3) ------- (None) > --- INVENTORY (5) ---- Improved Heat Sink Advanced Targeting Computer Improved Assault Rifle Enhanced Autogun Gauss Cannon Peak State ------------ > --- POWER ------------ Micro Nuclear Core > --- PROPULSION ------- Light Treads Light Treads Light Treads > --- UTILITY ---------- High-capacity Storage Unit Improved Light Armor Plating Hacking Suite > --- WEAPON ----------- Particle Gun Enhanced Autogun Gauss Cannon > --- INVENTORY -------- Micro Nuclear Core Improved Heat Sink Advanced Targeting Computer Light Armor Plating Improved EM Shotgun Particle Gun Improved Assault Rifle Improved Assault Rifle Gauss Cannon Gauss Cannon [Rating: 27] Favorites ----------- Power Heavy Ion Engine Engine Heavy Ion Engine Power Core Micro Nuclear Core Propulsion Light Treads Treads Light Treads Wheel Wheel Utility Small Storage Unit Storage Small Storage Unit Hackware Hacking Suite Protection Light Armor Plating Weapon Improved Assault Rifle Energy Gun Particle Gun Ballistic Gun Improved Assault Rifle Ballistic Cannon Gauss Cannon Special Melee Weapon Datajack Build | -11 -10 -9 -9 -8 ------- Run | Yrd Mat Mat Min Mat Slots Evolved 4 | . . 2 . 2 Power . | . . . . . Propulsion 2 | . . 2 . . Utility 1 | . . . . 1 Weapon 1 | . . . . 1 Parts Attached 51 | 8 5 16 2 20 Power 5 | 1 . 2 . 2 Engine 3 | 1 . 2 . . Core 2 | . . . . 2 Reactor . | . . . . . Propulsion 17 | 4 1 10 1 1 Treads 13 | 2 . 9 1 1 Leg . | . . . . . Wheel 4 | 2 1 1 . . Hover . | . . . . . Flight . | . . . . . Utility 8 | 1 1 1 . 5 Device . | . . . . . Storage 2 | 1 . . . 1 Processor . | . . . . . Hackware 1 | . . . . 1 Protection 5 | . 1 1 . 3 Artifact . | . . . . . Weapon 21 | 2 3 3 1 12 Energy Gun 11 | 2 1 1 . 7 Energy Cannon . | . . . . . Ballistic Gun 7 | . 2 1 1 3 Ballistic Cannon 2 | . . . . 2 Launcher . | . . . . . Special Weapon . | . . . . . Impact Weapon . | . . . . . Slashing Weapon . | . . . . . Piercing Weapon . | . . . . . Special Melee Weapon 1 | . . 1 . . Unidentified Prototypes 4 | . 1 2 . 1 Parts Lost 15 | . . . . 15 Power 1 | . . . . 1 Propulsion 4 | . . . . 4 Utility 4 | . . . . 4 Weapon 6 | . . . . 6 Highest Loss Streak 13 | . . . . 13 To Critical Strikes . | . . . . . Average Slot Usage (%) 94 | . 98 98 100 88 Engine 7 | . 14 11 11 1 Core 3 | . . . . 6 Treads 28 | . . 40 44 27 Wheel 5 | . 28 2 . . Storage 10 | . 14 11 11 9 Hackware 3 | . . . . 9 Protection 10 | . 12 11 11 8 Energy Gun 8 | . 15 4 . 9 Ballistic Gun 13 | . 12 15 22 10 Ballistic Cannon 2 | . . . . 5 Naked Turns 2 | . . . . 2 Heaviest Build 62 | 12 19 22 22 62 Greatest Support 80 | 40 20 80 80 80 Greatest Overweight (x) 2 | . . 1 . 2 Average Overweight (x) . | . . . . . Largest Inventory Capacity 20 | 8 8 8 8 20 Average Capacity 10 | 5 8 8 8 13 Most Carried 12 | 2 8 8 8 12 Average Carried 7 | . 5 7 8 8 Final Capacity 8 | 8 8 8 8 5 Final Carried 8 | 2 8 8 8 5 Class Distribution -------------------- 56% | Mutant 29% | Scavenger-Tank 13% | Scavenger-Mutant Dominant Class ---------------- Mutant | -10/Materials Mutant | -9/Materials Mutant | -9/Mines Scavenger-Tank | -8/Materials Resources | -11 -10 -9 -9 -8 ----------- Run | Yrd Mat Mat Min Mat Matter Collected 963 | 90 288 308 31 246 Remotely . | . . . . . Salvage Created 1870 | . 410 825 . 635 Parts 101 | . 24 46 . 31 Haulers Intercepted 2 | . 1 1 . . Recyclers Shooed 2 | . . 1 1 . Parts Field Recycled . | . . . . . Retrieved Matter . | . . . . . Parts Self-Destructed . | . . . . . Prevented . | . . . . . Kills | -11 -10 -9 -9 -8 ------- Run | Yrd Mat Mat Min Mat Combat Hostiles Destroyed 29 | . 9 9 . 11 Guns 26 | . 9 9 . 8 Cannons 2 | . . . . 2 AOE 1 | . . . . 1 Classes Destroyed 10 | . 5 4 . 1 Worker 4 | . 1 2 . 1 Hauler 2 | . 1 1 . . Recycler 5 | . . 4 . 1 Operator 1 | . 1 . . . Watcher 2 | . . 2 . . Swarmer 3 | . 3 . . . Grunt 18 | . 6 5 . 7 Brawler 1 | . . 1 . . Duelist 2 | . . . . 2 Sentry 5 | . . 3 . 2 Best Kill Streak 6 | . 5 6 . 5 Combat Bots Only 5 | . 4 3 . 5 Max Kills in Single Turn 2 | . 1 2 . 1 Gunslinging . | . . . . . Exploded 1 | . . . . 1 Melee . | . . . . . Uniques/NPCs Destroyed . | . . . . . Combat | -11 -10 -9 -9 -8 -------- Run | Yrd Mat Mat Min Mat Hostile Shots Fired 199 | . 34 25 . 140 Missed 31 | . 7 9 . 15 Damage Taken 2676 | . 296 220 18 2142 Core 643 | . 88 . . 555 Absorbed by Shields . | . . . . . Core Remaining (%) 88 | 100 64 . 100 . Volleys Fired 102 | . 31 33 2 36 Largest 3 | . 2 2 2 3 Hottest 158 | . 105 68 46 158 Shots Fired 210 | . 62 51 4 93 Gun 198 | . 62 51 4 81 Cannon 12 | . . . . 12 Launcher . | . . . . . Special . | . . . . . Kinetic 128 | . 20 46 4 58 Thermal 73 | . 42 . . 31 Explosive . | . . . . . Electromagnetic 9 | . . 5 . 4 Robot Hit Streak 13 | . 8 10 9 13 Robot Miss Streak 6 | . 4 3 . 6 Penetration Max . | . . . . . Secondary Targets 3 | . 2 . . 1 Max Gunslinging Chain 1 | . 1 . . 1 Shots Hit Robots 136 | . 38 35 4 59 Core Hits 75 | . 18 27 1 29 Critical Kills . | . . . . . Critical Parts Destroyed . | . . . . . Critical Strikes 1 | . . . . 1 Blast 1 | . . . . 1 Melee Attacks . | . . . . . Impact . | . . . . . Slashing . | . . . . . Piercing . | . . . . . Sneak Attacks . | . . . . . Combat Hostiles . | . . . . . Follow-up Attacks . | . . . . . Damage Inflicted 2443 | . 451 723 68 1201 Guns 1934 | . 449 581 60 844 Cannons 218 | . . . . 218 Explosions 281 | . . 142 . 139 Melee . | . . . . . Ramming 10 | . 2 . 8 . Kinetic 1466 | . 151 513 60 742 Thermal 826 | . 298 142 . 386 Explosive . | . . . . . Electromagnetic 141 | . . 68 . 73 Impact . | . . . . . Slashing . | . . . . . Piercing . | . . . . . Highest Corruption . | . . . . . Average Corruption . | . . . . . Corruption Purged . | . . . . . Corruption Blocked . | . . . . . Overload Shots . | . . . . . Overflow Damage . | . . . . . Projectiles . | . . . . . Explosions . | . . . . . Melee . | . . . . . Knockbacks 2 | . . . . 2 Impact . | . . . . . Kinetic 2 | . . . . 2 Secondary . | . . . . . Self-Inflicted Damage 13 | . 1 . . 12 Shots 1 | . . . . 1 Rammed 3 | . 1 . 2 . Targets Rammed 3 | . 1 . 2 . Kicked . | . . . . . Crushed . | . . . . . Highest Temperature 897 | . 287 27 . 897 Average Temperature 226 | . 72 7 . 349 Received Heat Transfer 1452 | . 147 72 . 1233 Effects 32 | . . . . 32 Shutdowns 4 | . . . . 4 Energy Bleed 1 | . . . . 1 Interference 6 | . . . . 6 Matter Decay 1 | . . . . 1 Short Circuit 5 | . . . . 5 Damage (minor) 4 | . . . . 4 Damage (major) 10 | . . . . 10 Damage (core) 1 | . . . . 1 Siege Activations . | . . . . . Robots Corrupted . | . . . . . Combat Hostiles . | . . . . . Parts Fried . | . . . . . Impact Corruptions . | . . . . . Robots Melted . | . . . . . Combat Hostiles . | . . . . . Parts Melted 1 | . 1 . . . Heat Transferred 1679 | . 687 200 . 792 Parts Sabotaged . | . . . . . Parts Stolen . | . . . . . Parts Stripped . | . . . . . Power Chain Reactions 3 | . . 2 . 1 Alert | -11 -10 -9 -9 -8 ------- Run | Yrd Mat Mat Min Mat Peak Influence 361 | . 344 361 121 158 Initial 144 | . . 144 106 46 Average 138 | . 159 248 119 80 Maximum Alert Level 1 | . 1 1 . . Low Security (%) 79 | 100 66 44 100 100 Level 1 20 | . 33 55 . . Level 2 . | . . . . . Level 3 . | . . . . . Level 4 . | . . . . . Level 5 . | . . . . . High Security . | . . . . . Max Security . | . . . . . Squads Dispatched 5 | . 2 1 . 2 Investigation . | . . . . . Extermination . | . . . . . Reinforcement 4 | . 2 1 . 1 Assault . | . . . . . Garrison 1 | . . . . 1 Intercept . | . . . . . Searches Triggered . | . . . . . Construction Impeded 1 | . . . . 1 Haulers Reinforced . | . . . . . Active Scanning Responses . | . . . . . Cargo Convoy Interrupts . | . . . . . Stealth | -11 -10 -9 -9 -8 --------- Run | Yrd Mat Mat Min Mat Distress Signals 6 | . 1 3 . 2 Communications Jammed . | . . . . . Distress Signals . | . . . . . Times Spotted 65 | . 22 18 5 20 Peak Tracking Total 9 | . 5 6 2 9 Tactical Retreats 1 | . . . . 1 Traps | -11 -10 -9 -9 -8 ------- Run | Yrd Mat Mat Min Mat Traps Triggered 3 | . . 2 . 1 Indirectly . | . . . . . Trap Hack Attempts . | . . . . . Triggered . | . . . . . Disarmed . | . . . . . Reprogrammed . | . . . . . Reused . | . . . . . Traps Extracted . | . . . . . Installed . | . . . . . Triggered . | . . . . . Machines | -11 -10 -9 -9 -8 ---------- Run | Yrd Mat Mat Min Mat Machines Disabled 1 | . 1 . . . Max in Single Turn 1 | . 1 . . . Machines Repaired . | . . . . . Machines Dismantled . | . . . . . Machines Sabotaged . | . . . . . Overloaded Fab Kills . | . . . . . Hacking | -11 -10 -9 -9 -8 --------- Run | Yrd Mat Mat Min Mat Machines Accessed 1 | . . . . 1 Terminals 1 | . . . . 1 Fabricators . | . . . . . Repair Stations . | . . . . . Recycling Units . | . . . . . Scanalyzers . | . . . . . Garrison Access . | . . . . . Total Hacks 1 | . . . . 1 Successful 1 | . . . . 1 Failed . | . . . . . Catastrophic . | . . . . . Database Lockouts . | . . . . . Manual . | . . . . . Terminals 1 | . . . . 1 Fabricators . | . . . . . Repair Stations . | . . . . . Recycling Units . | . . . . . Scanalyzers . | . . . . . Garrison Access . | . . . . . Terminal Hacks 1 | . . . . 1 Patrol Status 1 | . . . . 1 Fabricator Hacks . | . . . . . Repair Station Hacks . | . . . . . Recycling Unit Hacks . | . . . . . Scanalyzer . | . . . . . Garrison Access Hacks . | . . . . . Unauthorized Hacks . | . . . . . Terminals . | . . . . . Fabricators . | . . . . . Repair Stations . | . . . . . Recycling Units . | . . . . . Scanalyzers . | . . . . . Garrison Access . | . . . . . Data Cores Recovered . | . . . . . Used . | . . . . . Hacking Detections . | . . . . . Full Trace Events . | . . . . . Feedback Events . | . . . . . Feedback Blocked . | . . . . . Robot Schematics Acquired . | . . . . . Robots Built . | . . . . . Authchips . | . . . . . Time . | . . . . . Total Robot Build Rating . | . . . . . Part Schematics Acquired . | . . . . . Parts Built . | . . . . . Authchips . | . . . . . Time . | . . . . . Total Part Build Rating . | . . . . . Parts Repaired . | . . . . . Time . | . . . . . Parts Recycled . | . . . . . Recycled Matter . | . . . . . Retrieved Matter . | . . . . . Retrieved Components . | . . . . . Parts Scanalyzed . | . . . . . Part Schematics Acquired . | . . . . . Parts Damaged . | . . . . . Bothacking | -11 -10 -9 -9 -8 ------------ Run | Yrd Mat Mat Min Mat Used RIF Installer . | . . . . . Robots Hacked . | . . . . . Non-combat . | . . . . . Combat . | . . . . . Robot Hacks Applied . | . . . . . Relay Couplers Released . | . . . . . Fabnet Peak Effective % . | . . . . . Robots Rewired . | . . . . . Allies Hacked . | . . . . . Hacks Repelled . | . . . . . Allies | -11 -10 -9 -9 -8 -------- Run | Yrd Mat Mat Min Mat Total Allies . | . . . . . Largest Group . | . . . . . Highest-Rated Group . | . . . . . Highest-Rated Ally . | . . . . . Total Orders . | . . . . . Ally Attacks . | . . . . . Total Damage . | . . . . . Kills . | . . . . . Allies Corrupted . | . . . . . Allies Melted . | . . . . . Intel | -11 -10 -9 -9 -8 ------- Run | Yrd Mat Mat Min Mat Robot Analysis Total . | . . . . . Derelict Logs Recovered . | . . . . . Drone Launches . | . . . . . Drone Recoveries . | . . . . . Exploration | -11 -10 -9 -9 -8 ------------- Run | Yrd Mat Mat Min Mat Turns Passed 2405 | 138 372 669 223 1003 Spaces Moved 1282 | 95 299 324 120 444 Core 10 | 8 . . . 2 Treads 915 | 62 . 291 120 442 Legs . | . . . . . Wheels 357 | 25 299 33 . . Hover . | . . . . . Flight . | . . . . . Fastest Speed 50 | 50 80 80 160 50 Average Speed 149 | 129 80 164 160 186 Slowest Speed 320 | 160 80 240 160 320 Overloaded Moves . | . . . . . Propulsion Burnouts . | . . . . . Robots Hopped . | . . . . . Cave-ins Triggered . | . . . . . Exploration Rate (%) 27 | 5 52 26 29 24 Regions Visited 4 Branch Regions 1 Pre-discovered Areas . | . . . . . Known Exits Taken . | . . . . . Unknown Exits Taken 4 | 1 1 1 1 . Scrap Searched 1 | . . . 1 . Spaces Dug . | . . . . . Terrain Destroyed 18 | . . 4 . 14 Melee . | . . . . . Projectile 8 | . . . . 8 AOE 10 | . . 4 . 6 Terrain Rammed . | . . . . . Walls Destroyed . | . . . . . Machines Disabled . | . . . . . Actions | -11 -10 -9 -9 -8 --------- Run | Yrd Mat Mat Min Mat Total 1579 | 106 368 410 146 549 Wait 95 | . 26 26 20 23 Move 1278 | 94 298 323 119 444 Hop . | . . . . . Pick Up 27 | 3 6 4 . 14 Fast Attach 12 | 6 . 5 . 1 Attach 13 | . 1 2 . 10 Detach 2 | . . 1 . 1 Swap 26 | 2 4 9 2 9 Drop 21 | 1 1 7 1 11 Fire 102 | . 31 33 2 36 Melee . | . . . . . Ram 1 | . 1 . . . Kick . | . . . . . Crush 2 | . . . 2 . Escape Stasis . | . . . . . Rewire . | . . . . . Trap . | . . . . . Miscellaneous . | . . . . . Route ------- -11/Scrapyard -10/Materials (discovered 2 exits: *Mat / [*Min]) -9/Materials -9/Mines -8/Materials History --------- Turn | Location | Event 9 | -11/Scrapyard | Discovered new exit (range 16) 139 | -11/Scrapyard | Entered Materials 307 | -10/Materials | Build established: Mutant 412 | -10/Materials | Discovered new exit (range 13) 473 | -10/Materials | Discovered new exit (range 12) 511 | -10/Materials | Entered another Materials area 511 | -9/Materials | Evolved 2 slots: Propulsion x2 1133 | -9/Materials | Discovered new exit (range 15) 1180 | -9/Materials | Entered Mines 1198 | -9/Mines | Joined a pair of Derelicts in attacking an 0b10 outpost 1231 | -9/Mines | Met a Derelict bent on vengeance 1392 | -9/Mines | Discovered new exit (range 5) 1403 | -9/Mines | Entered Materials 1403 | -8/Materials | Evolved 2 slots: Utility x1, Weapon x1 1806 | -8/Materials | Build established: Scavenger-Tank 2366 | -8/Materials | Garrison activated, responded to threat 2396 | -8/Materials | Core integrity fell below 50% 2404 | -8/Materials | Core integrity fell below 20% 2406 | -8/Materials | Destroyed by G-47 Trooper with Particle Gun Last Messages --------------- 02394_ Overheating: Short circuit. 02394_ U-05 Engineer builds a Wall. 02394_ Broken Lgt. Treads destroyed. 02394_ Critical hit (Burn: +37). 02397_ Particle Gun destroyed. 02398_ Lgt. Armor Plating destroyed. 02398_ Particle Gun destroyed. 02399_ Overheating: Hcp. Storage Unit damaged (-9). 02399_ U-05 Engineer builds a Wall. 02400_ Hacking Suite destroyed. 02400_ Particle Gun destroyed. 02401_ Overheating: Hcp. Storage Unit damaged (-3). 02402_ Power failure, Mic. Nuclear Core shutdown. 02402_ Overheating: Mic. Nuclear Core damaged (-17). 02402_ Overheating: Hcp. Storage Unit damaged (-1). 02403_ Dropped Hcp. Storage Unit. 02404_ Dropped Mic. Nuclear Core. 02405_ Critical hit (Burn: +37). 02405_ U-05 Engineer builds a Wall. 02406_ Critical hit (Burn: +37). Map ----- +----------------------------------------------------+ | ???#######???????????????????????????????????????? | | ?????????????????????????????????????????????????? | | ?????????????????????????????????????????????????? | | ?????????????????????????????????????????????????? | | #####???????????????????? ??????????????????????? | | # ###????????????????"" #?????????????????????? | | + ! ""#????????????????"" #?????????????????????? | | # T"#???????????????? #?????????????????????? | | #!!]""#???????????????? #?????????????????????? | | #!!]###???????????????? #?????????????????????? | | #!! #?????????????????? k#?????????????????????? | | # ######????????????? u#?????????????????????? | | ##/### !!#????????????? #?????????????????????? | | !!#?????????????# w#?????????????????????? | | ** #?????????????# #?????????????????????? | | * *#???########### k#?????????????????????? | | ##+### #??## # u#?????????????????????? | | # ## ] #??# = = """ # %#?????????????????????? | | #! !########## "G"%#%[ ##????????????????????? | | # #?# # " "=+%[ ##????????????????????? | | # " #?# """ # """ #%*g##????????????????????? | | # T #?# """ + """ !#ggg=#????????????????????? | | # " #?#! """ # """ | #g%=;#????????????????????? | | # #?# # ! #g=!#?????????????????????? | | #####?#[ ###########*! #?????????????????????? | | ####??#"#+####### @ #?????????????????????? | | #??# #?????????????????????? | | ## #??# #+####### #?????????????????????? | | ?# #??#!# #???# ########?????????????????????? | | ?# #??#%# ! #???# #????????????????????????????? | | ?# #### # #???# #????????????????????????????? | | ?# =[#" #???# ########?????????????????????? | | #######=#T #???# #?????????????????????? | | # #" #???# #?????????????????????? | | /=+%# #???# #?????????????????????? | | ! *#=#####???######## #?????????????????????? | | /# #########??????# #?????????????????????? | | ####### #= #??????# #?????????????????????? | | ??????# # ######## #?????????????????????? | | ??????# + # #?????????????????????? | | ??????# # # #?????????????????????? | | ??????# # # #?????????????????????? | | ??????# ##########+#########?????????????????????? | | ??????# #????# """ """ #?????????????????????????? | | ??????# #????# """ """ #?????????????????????????? | | ??????# #????# """ """ #?????????????????????????? | | ??????# #????# #?????????????????????????? | | ???####+###??# = #?????????????????????????? | | ???# #??# ! #?????????????????????????? | | ???# """ #??# [ #?????????????????????????? | +----------------------------------------------------+ Best States ------------- Heat Dissipation 31 Energy Generation 15 Energy Capacity 280 Matter Stores 300 Matter Capacity 300 Sight Range 16 Terrain Scan Density 10 Armor Coverage 150 Evasion (%) 44 Recoil Reduction 4 Offensive Hacking 10 Item Schematics ----------------- None Robot Schematics ------------------ None Fabricated ------------ Nothing Alien Tech Used ----------------- None Achievements -------------- None Challenges ------------ None Game ------ Seed SwarmChainSource Manual? 0 Play Time 00:21:32 Cumulative 80.6 hours Start 2024.04.10 @ 18:17:10 End 2024.04.10 @ 21:44:19 Sessions 1 Manual Loads 0 Difficulty Rogue Special Mode None Game No. 168 Rogue 168 Adventurer 0 Explorer 0 Win Type - Total 0 Types 0/0/0/0/0/0/0/0/0 Lore% 28 Gallery% 44 Achievement% 32 Wizard Run 0 Options --------- Layout 0 ASCII 0 Keyboard 1 Movement Numpad Keybinds 0 Fullscreen 1 Font 24/Terminus Map View 76x50 Zoom Use 0% Tactical HUD 1 Map Filters NONE Filters NONE Steam 1 RUN: cc745060-fd8f-4283-aa8b-869a375dda8a